fUSD/lending_fUSD_20241227
["ID","MTS","AMOUNT","RATE_DAILY","PERIOD"]
[346807799,1735301452819,-805.02,0.00010884,2]
[346807800,1735301452829,-875.61,0.00010884,2]
[346807801,1735301452840,-500.0,0.00010884,2]
[346807802,1735301452849,-1719.22,0.00010884,2]
[346807803,1735301452858,-500.0,0.00010884,2]
[346807804,1735301452867,-500.0,0.00010884,2]
[346807805,1735301452877,-500.0,0.00010884,2]
[346807806,1735301452887,-500.0,0.00010884,2]
[346807807,1735301452897,-500.0,0.00010884,2]
[346807808,1735301452906,-801.22,0.00010884,2]
[346807809,1735301452915,-801.22,0.00010884,2]
[346807810,1735301452925,-500.0,0.00010884,2]
[346807811,1735301452934,-500.0,0.00010884,2]
[346807812,1735301452943,-500.0,0.00010884,2]
[346807813,1735301452953,-500.0,0.00010884,2]
[346807814,1735301452962,-500.0,0.00010884,2]
[346807815,1735301452971,-500.0,0.00010884,2]
[346807816,1735301452981,-529.14,0.00010884,2]
[346807817,1735301452990,-1773.34,0.00010884,2]
[346807818,1735301453000,-500.0,0.00010884,2]
[346807819,1735301453009,-342.18660509,0.00010884,2]
[346807820,1735301453018,-500.0,0.00010884,2]
[346807821,1735301453028,-500.0,0.00010884,2]
[346807822,1735301453037,-407.16391601,0.00010884,2]
[346807823,1735301453046,-500.0,0.00010884,2]
[346807824,1735301453055,-500.0,0.00010884,2]
[346807825,1735301453064,-2487.82,0.00010884,2]
[346807826,1735301453073,-952.3,0.00010884,2]
[346807827,1735301453083,-1254.05,0.00010884,2]
[346807828,1735301453092,-500.0,0.00010884,2]
[346807829,1735301453103,-500.0,0.00010884,2]
[346807830,1735301453114,-500.0,0.00010884,2]
[346807831,1735301453124,-1393.3,0.00010884,2]
[346807832,1735301453133,-718.1,0.00010884,2]
[346807833,1735301453143,-500.0,0.00010884,2]
[346807834,1735301453152,-500.0,0.00010884,2]
[346807835,1735301453161,-1709.43,0.00010884,2]
[346807836,1735301453171,-500.0,0.00010884,2]
[346807837,1735301453181,-1485.68,0.00010884,2]
[346807838,1735301453191,-500.0,0.00010884,2]
[346807839,1735301453200,-500.0,0.00010884,2]
[346807840,1735301453210,-500.0,0.00010884,2]
[346807841,1735301453219,-502.3941772,0.00010884,2]
[346807842,1735301453228,-2495.06,0.00010884,2]
[346807843,1735301453238,-500.0,0.00010884,2]
[346807844,1735301453248,-1619.14,0.00010884,2]
[346807845,1735301453257,-500.0,0.00010884,2]
[346807846,1735301453268,-509.56748983,0.00010884,2]
[346807847,1735301453277,-1604.56,0.00010884,2]
[346807848,1735301453287,-1107.28,0.00010884,2]
[346807849,1735301453297,-1599.43,0.00010884,2]
[346807850,1735301453307,-605.25,0.00010884,2]
[346807851,1735301453317,-879.82,0.00010884,2]
[346807852,1735301453327,-500.0,0.00010884,2]
[346807853,1735301453337,-1323.74,0.00010884,2]
[346807854,1735301453347,-1729.82,0.00010884,2]
[346807855,1735301453356,-500.0,0.00010884,2]
[346807856,1735301453366,-567.59,0.00010884,2]
[346807857,1735301453376,-500.0,0.00010884,2]
[346807858,1735301453385,-3170.39,0.00010884,2]
[346807859,1735301453395,-1809.75,0.00010884,2]
[346807860,1735301453405,-500.0,0.00010884,2]
[346807861,1735301453414,-905.37,0.00010884,2]
[346807862,1735301453424,-2097.88,0.00010884,2]
[346807863,1735301453433,-500.0,0.00010884,2]
[346807864,1735301453443,-641.16,0.00010884,2]
[346807865,1735301453654,-500.63095171,0.00010884,2]
[346807866,1735301453663,-500.0,0.00010884,2]
[346807867,1735301453672,-2118.44,0.00010884,2]
[346807868,1735301453682,-500.0,0.00010884,2]
[346807869,1735301453691,-500.0,0.00010884,2]
[346807870,1735301453700,-500.0,0.00010884,2]
[346807871,1735301453709,-500.0,0.00010884,2]
[346807872,1735301453718,-2783.44,0.00010884,2]
[346807873,1735301453727,-500.0,0.00010884,2]
[346807874,1735301453736,-2847.31,0.00010884,2]
[346807875,1735301453745,-1931.04,0.00010884,2]
[346807876,1735301453754,-500.0,0.00010884,2]
[346807877,1735301453763,-500.0,0.00010884,2]
[346807878,1735301453772,-500.0,0.00010884,2]
[346807879,1735301453781,-500.0,0.00010884,2]
[346807880,1735301453790,-2488.92,0.00010884,2]
[346807881,1735301453799,-500.0,0.00010884,2]
[346807882,1735301453808,-500.0,0.00010884,2]
[346807883,1735301453819,-500.0,0.00010884,2]
[346807884,1735301453827,-1024.28,0.00010884,2]
[346807885,1735301453836,-500.0,0.00010884,2]
[346807886,1735301453846,-500.0,0.00010884,2]
[346807887,1735301453857,-505.18413198,0.00010884,2]
[346807888,1735301453867,-500.0,0.00010884,2]
[346807889,1735301453877,-2069.09,0.00010884,2]
[346807890,1735301453886,-1259.74,0.00010884,2]
[346807891,1735301453896,-2128.19,0.00010884,2]
[346807892,1735301453905,-500.0,0.00010884,2]
[346807893,1735301453915,-2390.5,0.00010884,2]
[346807894,1735301453925,-1783.05,0.00010884,2]
[346807895,1735301453935,-500.0,0.00010884,2]
[346807896,1735301453944,-1890.51,0.00010884,2]
[346807897,1735301453955,-500.0,0.00010884,2]
[346807898,1735301453965,-3838.06,0.00010884,2]
[346807899,1735301453974,-500.0,0.00010884,2]
[346807900,1735301453985,-500.0,0.00010884,2]
[346807901,1735301453994,-500.0,0.00010884,2]
[346807902,1735301454004,-500.0,0.00010884,2]
[346807903,1735301454014,-500.0,0.00010884,2]
[346807904,1735301454024,-500.0,0.00010884,2]
[346807905,1735301454034,-530.17,0.00010884,2]
[346807906,1735301454043,-502.30333363,0.00010884,2]
[346807907,1735301454052,-500.0,0.00010884,2]
[346807908,1735301454061,-500.0,0.00010884,2]
[346807909,1735301454071,-1761.14,0.00010884,2]
[346807910,1735301454081,-1640.29,0.00010884,2]
[346807911,1735301454090,-520.86450792,0.00010884,2]
[346807912,1735301454100,-591.84650617,0.00010884,2]
[346807913,1735301454113,-500.0,0.00010884,2]
[346807914,1735301454123,-1392.3,0.00010884,2]
[346807915,1735301454132,-1461.58,0.00010884,2]
[346807916,1735301454142,-244.57149283,0.00010884,2]
[346807917,1735301454153,-500.0,0.00010884,2]
[346807918,1735301454162,-500.0,0.00010884,2]
[346807919,1735301454171,-1571.73,0.00010884,2]
[346807920,1735301454182,-500.0,0.00010884,2]
[346807921,1735301454192,-2049.24,0.00010884,2]
[346807922,1735301454202,-500.0,0.00010884,2]
[346807923,1735301454212,-1896.17,0.00010884,2]
[346807924,1735301454221,-1640.22,0.00010884,2]
[346807925,1735301454231,-1073.19,0.00010884,2]
[346807926,1735301454240,-616.99,0.00010884,2]
[346807927,1735301454249,-1437.04,0.00010884,2]
[346807928,1735301454259,-500.0,0.00010884,2]
[346807929,1735301454268,-562.39,0.00010884,2]
[346807930,1735301454278,-500.0,0.00010884,2]
[346807931,1735301454288,-500.0,0.00010884,2]
[346807932,1735301454297,-500.0,0.00010884,2]
[346807933,1735301454307,-500.0,0.00010884,2]
[346807934,1735301454316,-500.0,0.00010884,2]
[346807935,1735301454326,-752.5,0.00010884,2]
[346807936,1735301454335,-1929.26,0.00010884,2]
[346807937,1735301454345,-500.0,0.00010884,2]
[346807938,1735301454357,-500.0,0.00010884,2]
[346807939,1735301454367,-905.62,0.00010884,2]
[346807940,1735301454377,-1087.2,0.00010884,2]
[346807941,1735301454386,-3133.95,0.00010884,2]
[346807942,1735301454396,-612.04,0.00010884,2]
[346807943,1735301454405,-500.0,0.00010884,2]
[346807944,1735301454415,-500.0,0.00010884,2]
[346807945,1735301454425,-3746.22,0.00010884,2]
[346807946,1735301454434,-841.92,0.00010884,2]
[346807947,1735301454443,-688.55,0.00010884,2]
[346807948,1735301454453,-656.02,0.00010884,2]
[346807949,1735301454462,-500.0,0.00010884,2]
[346807950,1735301454471,-500.0,0.00010884,2]
[346807951,1735301454480,-1869.93,0.00010884,2]
[346807952,1735301454490,-500.0,0.00010884,2]
[346807953,1735301454499,-750.99,0.00010884,2]
[346807954,1735301454508,-565.06,0.00010884,2]
[346807955,1735301454517,-500.0,0.00010884,2]
[346807956,1735301454527,-500.0,0.00010884,2]
[346807957,1735301454536,-548.57467184,0.00010884,2]
[346807958,1735301454545,-500.0,0.00010884,2]
[346807959,1735301454554,-1067.61,0.00010884,2]
[346807960,1735301454562,-862.76,0.00010884,2]
[346807961,1735301454571,-500.0,0.00010884,2]
[346807962,1735301454579,-500.0,0.00010884,2]
[346807963,1735301454588,-500.0,0.00010884,2]
[346807964,1735301454596,-500.0,0.00010884,2]
[346807965,1735301454606,-500.0,0.00010884,2]
[346807966,1735301454615,-1604.13,0.00010884,2]
[346807967,1735301454623,-168.80049836,0.00010884,2]
[346807968,1735301454630,-3049.28,0.00010884,2]
[346807969,1735301454638,-500.0,0.00010884,2]
[346807970,1735301454647,-500.0,0.00010884,2]
[346807971,1735301454656,-1437.51,0.00010884,2]
[346807972,1735301454665,-500.0,0.00010884,2]
[346807973,1735301454674,-525.36,0.00010884,2]
[346807974,1735301454683,-500.0,0.00010884,2]
[346807975,1735301454691,-500.0,0.00010884,2]
[346807976,1735301454700,-500.0,0.00010884,2]
[346807977,1735301454709,-500.0,0.00010884,2]
[346807978,1735301454718,-500.0,0.00010884,2]
[346807979,1735301454727,-1034.54,0.00010884,2]
[346807980,1735301454736,-500.0,0.00010884,2]
[346807981,1735301454745,-3283.04,0.00010884,2]
[346807982,1735301454754,-803.49,0.00010884,2]
[346807983,1735301454764,-500.0,0.00010884,2]
[346807984,1735301454773,-1956.47,0.00010884,2]
[346807985,1735301454782,-514.06896192,0.00010884,2]
[346807986,1735301454791,-504.66830843,0.00010884,2]
[346807987,1735301454800,-318.82,0.00010884,2]
[346807988,1735301454809,-1635.72,0.00010884,2]
[346807989,1735301454819,-500.0,0.00010884,2]
[346807990,1735301454828,-500.0,0.00010884,2]
[346807991,1735301454838,-500.0,0.00010884,2]
[346807992,1735301454847,-5413.2,0.00010884,2]
[346807993,1735301454858,-500.0,0.00010884,2]
[346807994,1735301454867,-958.41,0.00010884,2]
[346807995,1735301454876,-3841.69,0.00010884,2]
[346807996,1735301454885,-500.0,0.00010884,2]
[346807997,1735301454895,-500.0,0.00010884,2]
[346807998,1735301454904,-3110.95,0.00010884,2]
[346807999,1735301454914,-500.0,0.00010884,2]
[346808000,1735301454924,-501.15987163,0.00010884,2]
[346808001,1735301454934,-500.0,0.00010884,2]
[346808002,1735301454943,-508.86,0.00010884,2]
[346808003,1735301454953,-1289.82,0.00010884,2]
[346808004,1735301454963,-500.0,0.00010884,2]
[346808005,1735301454972,-1292.47,0.00010884,2]
[346808006,1735301454982,-24655.3,0.00010884,2]
[346808007,1735301454991,-156.676807,0.00010885,2]
[346808008,1735301455000,-500.0,0.00010885,2]
[346808009,1735301455010,-500.0,0.00010885,2]
[346808010,1735301455019,-459.01441384,0.00010885,2]
[346808011,1735301455028,-500.0,0.00010885,2]
[346808012,1735301455038,-503.41434408,0.00010885,2]
[346808013,1735301455047,-502.08906168,0.00010885,2]
[346808014,1735301455056,-500.0,0.00010885,2]
[346808015,1735301455066,-500.0,0.00010885,2]
[346808016,1735301455075,-500.0,0.00010885,2]
[346808017,1735301455084,-300.0,0.00010885,2]
[346808018,1735301455093,-500.0,0.00010885,2]
[346808019,1735301455108,-500.0,0.00010885,2]
[346808020,1735301455117,-500.0,0.00010885,2]
[346808021,1735301455126,-500.0,0.00010885,2]
[346808022,1735301455135,-500.0,0.00010885,2]
[346808023,1735301455143,-500.0,0.00010885,2]
[346808024,1735301455152,-500.0,0.00010885,2]
[346808025,1735301455161,-500.0,0.00010885,2]
[346808026,1735301455170,-500.0,0.00010885,2]
[346808027,1735301455179,-500.0,0.00010885,2]
[346808028,1735301455189,-500.88357485,0.00010885,2]
[346808029,1735301455199,-500.0,0.00010885,2]
[346808030,1735301455208,-500.0,0.00010885,2]
[346808031,1735301455218,-500.0,0.00010885,2]
[346808032,1735301455228,-500.0,0.00010885,2]
[346808033,1735301455237,-500.0,0.00010885,2]
[346808034,1735301455247,-500.70864895,0.00010885,2]
[346808035,1735301455256,-502.17542097,0.00010885,2]
[346808036,1735301455266,-500.0,0.00010885,2]
[346808037,1735301455275,-630.25242221,0.00010885,2]
[346808038,1735301455284,-500.0,0.00010885,2]
[346808039,1735301455294,-502.11836469,0.00010885,2]
[346808040,1735301455303,-500.0,0.00010885,2]
[346808041,1735301455312,-500.0,0.00010885,2]
[346808042,1735301455321,-500.0,0.00010885,2]
[346808043,1735301455329,-3974.71,0.00010885,2]
[346808044,1735301455339,-3486.18,0.00010885,2]
[346808045,1735301455347,-500.0,0.00010885,2]
[346808046,1735301455359,-825.69,0.00010885,2]
[346808047,1735301455368,-1727.91,0.00010885,2]
[346808048,1735301455378,-778.95,0.00010885,2]
[346808049,1735301455387,-583.43309177,0.00010885,2]
[346808050,1735301455396,-500.0,0.00010885,2]
[346808051,1735301455406,-500.0,0.00010885,2]
[346808052,1735301455415,-500.0,0.00010885,2]
[346808053,1735301455425,-500.0,0.00010885,2]
[346808054,1735301455434,-2304.51,0.00010885,2]
[346808055,1735301455444,-743.76,0.00010885,2]
[346808056,1735301455454,-1671.5,0.00010885,2]
[346808057,1735301455463,-500.0,0.00010885,2]
[346808058,1735301455472,-1768.7,0.00010885,2]
[346808059,1735301455481,-6081.61,0.00010885,2]
[346808060,1735301455489,-500.0,0.00010885,2]
[346808061,1735301455498,-2619.16,0.00010885,2]
[346808062,1735301455508,-500.0,0.00010885,2]
[346808063,1735301455517,-500.0,0.00010885,2]
[346808064,1735301455526,-801.22,0.00010885,2]
[346808065,1735301455535,-801.22,0.00010885,2]
[346808066,1735301455545,-2156.2,0.00010885,2]
[346808067,1735301455554,-10641.78,0.00010885,2]
[346808068,1735301455563,-1804.85,0.00010885,2]
[346808069,1735301455572,-501.49885751,0.00010885,2]
[346808070,1735301455582,-500.0,0.00010885,2]
[346808071,1735301455592,-1655.38,0.00010885,2]
[346808072,1735301455601,-500.0,0.00010885,2]
[346808073,1735301455611,-636.31,0.00010885,2]
[346808074,1735301455621,-2671.63,0.00010885,2]
[346808075,1735301455630,-1891.51,0.00010885,2]
[346808076,1735301455639,-5051.29,0.00010885,2]
[346808077,1735301455648,-500.0,0.00010885,2]
[346808078,1735301455657,-2292.3,0.00010885,2]
[346808079,1735301455666,-2792.26,0.00010885,2]
[346808080,1735301455675,-606.37177322,0.00010885,2]
[346808081,1735301455684,-10041.41,0.00010885,2]
[346808082,1735301455693,-2127.49,0.00010885,2]
[346808083,1735301455702,-500.0,0.00010885,2]
[346808084,1735301455711,-2672.98,0.00010885,2]
[346808085,1735301455720,-1334.59,0.00010885,2]
[346808086,1735301455730,-1338.43,0.00010885,2]
[346808087,1735301455739,-2330.28,0.00010885,2]
[346808088,1735301455749,-1544.61,0.00010885,2]
[346808089,1735301455758,-500.0,0.00010885,2]
[346808090,1735301455767,-1731.2,0.00010885,2]
[346808091,1735301455777,-2152.38,0.00010885,2]
[346808092,1735301455786,-4867.28,0.00010885,2]
[346808093,1735301455796,-3615.08,0.00010885,2]
[346808094,1735301455805,-2023.67,0.00010885,2]
[346808095,1735301455814,-1550.74,0.00010885,2]
[346808096,1735301455823,-1793.38,0.00010885,2]
[346808097,1735301455833,-3973.08,0.00010885,2]
[346808098,1735301455842,-1447.04,0.00010885,2]
[346808099,1735301455852,-18262.45,0.00010885,2]
[346808100,1735301455862,-500.0,0.00010885,2]
[346808101,1735301455871,-3399.28,0.00010885,2]
[346808102,1735301455880,-4274.47,0.00010885,2]
[346808103,1735301455890,-2159.51,0.00010885,2]
[346808104,1735301455899,-3731.09,0.00010885,2]
[346808105,1735301455993,-500.0,0.00010885,2]
[346808106,1735301456003,-3878.32,0.00010885,2]
[346808107,1735301456012,-5296.22,0.00010885,2]
[346808108,1735301456022,-1268.34,0.00010885,2]
[346808109,1735301456034,-4059.65,0.00010885,2]
[346808110,1735301456043,-1506.56,0.00010885,2]
[346808111,1735301456053,-3222.86,0.00010885,2]
[346808112,1735301456063,-8982.26,0.00010885,2]
[346808113,1735301456073,-3393.93,0.00010885,2]
[346808114,1735301456083,-1854.75,0.00010885,2]
[346808115,1735301456091,-848.76,0.00010885,2]
[346808116,1735301456098,-5382.62,0.00010885,2]
[346808117,1735301456108,-625.46,0.00010885,2]
[346808118,1735301456116,-625.46,0.00010885,2]
[346808119,1735301456124,-6754.48,0.00010885,2]
[346808120,1735301456133,-2567.16,0.00010885,2]
[346808121,1735301456142,-671.91,0.00010885,2]
[346808122,1735301456153,-5737.43,0.00010885,2]
[346808123,1735301456163,-986.84,0.00010885,2]
[346808124,1735301456172,-4330.38,0.00010885,2]
[346808125,1735301456183,-1522.18,0.00010885,2]
[346808126,1735301456192,-8710.56,0.00010885,2]
[346808127,1735301456202,-500.0,0.00010885,2]
[346808128,1735301456211,-981.91,0.00010885,2]
[346808129,1735301456221,-11569.4,0.00010885,2]
[346808130,1735301456231,-651.99,0.00010886,2]
[346808131,1735301456240,-1519.58,0.00010886,2]
[346808132,1735301456249,-1430.85,0.00010886,2]
[346808133,1735301456259,-500.0,0.00010886,2]
[346808134,1735301456268,-500.0,0.00010886,2]
[346808135,1735301456278,-500.0,0.00010886,2]
[346808136,1735301456288,-500.0,0.00010886,2]
[346808137,1735301456298,-550.2,0.00010886,2]
[346808138,1735301456307,-1130.71,0.00010886,2]
[346808139,1735301456317,-500.0,0.00010886,2]
[346808140,1735301456326,-500.0,0.00010886,2]
[346808141,1735301456336,-702.89,0.00010886,2]
[346808142,1735301456345,-500.0,0.00010886,2]
[346808143,1735301456355,-639.83,0.00010886,2]
[346808144,1735301456365,-500.0,0.00010886,2]
[346808145,1735301456374,-500.0,0.00010886,2]
[346808146,1735301456383,-898.13,0.00010886,2]
[346808147,1735301456393,-500.0,0.00010886,2]
[346808148,1735301456402,-591.81,0.00010886,2]
[346808149,1735301456411,-852.63,0.00010886,2]
[346808150,1735301456421,-500.0,0.00010886,2]
[346808151,1735301456431,-500.0,0.00010886,2]
[346808152,1735301456440,-500.0,0.00010886,2]
[346808153,1735301456449,-500.0,0.00010886,2]
[346808154,1735301456458,-1393.59,0.00010886,2]
[346808155,1735301456467,-500.0,0.00010886,2]
[346808156,1735301456477,-500.0,0.00010886,2]
[346808157,1735301456486,-500.0,0.00010886,2]
[346808158,1735301456496,-1087.19,0.00010886,2]
[346808159,1735301456505,-500.0,0.00010886,2]
[346808160,1735301456514,-500.0,0.00010886,2]
[346808161,1735301456523,-1249.54,0.00010886,2]
[346808162,1735301456533,-630.55457995,0.00010886,2]
[346808163,1735301456542,-500.0,0.00010886,2]
[346808164,1735301456552,-1211.3,0.00010886,2]
[346808165,1735301456560,-500.0,0.00010886,2]
[346808166,1735301456568,-500.0,0.00010886,2]
[346808167,1735301456578,-150.0,0.00010886,2]
[346808168,1735301456587,-500.0,0.00010886,2]
[346808169,1735301456596,-500.0,0.00010886,2]
[346808170,1735301456606,-5000.0,0.00010886,2]
[346808171,1735301456615,-1195.55,0.00010886,2]
[346808172,1735301456624,-500.0,0.00010886,2]
[346808173,1735301456634,-500.0,0.00010886,2]
[346808174,1735301456643,-1053.83,0.00010886,2]
[346808175,1735301456652,-990.81,0.00010886,2]
[346808176,1735301456661,-500.0,0.00010886,2]
[346808177,1735301456671,-500.0,0.00010886,2]
[346808178,1735301456680,-500.0,0.00010886,2]
[346808179,1735301456689,-1513.76,0.00010886,2]
[346808180,1735301456699,-500.0,0.00010886,2]
[346808181,1735301456708,-500.0,0.00010886,2]
[346808182,1735301456717,-500.0,0.00010886,2]
[346808183,1735301456726,-500.0,0.00010886,2]
[346808184,1735301456734,-500.0,0.00010886,2]
[346808185,1735301456743,-942.28,0.00010886,2]
[346808186,1735301456752,-500.0,0.00010886,2]
[346808187,1735301456762,-684.58,0.00010886,2]
[346808188,1735301456771,-1433.55,0.00010886,2]
[346808189,1735301456779,-500.0,0.00010886,2]
[346808190,1735301456789,-500.0,0.00010886,2]
[346808191,1735301456798,-500.0,0.00010886,2]
[346808192,1735301456807,-500.0,0.00010886,2]
[346808193,1735301456816,-542.7,0.00010886,2]
[346808194,1735301456825,-500.0,0.00010886,2]
[346808195,1735301456834,-1763.73,0.00010886,2]
[346808196,1735301456843,-500.0,0.00010886,2]
[346808197,1735301456852,-500.0,0.00010886,2]
[346808198,1735301456863,-312.64717869,0.00010886,2]
[346808199,1735301456872,-500.0,0.00010886,2]
[346808200,1735301456881,-535.13837622,0.00010886,2]
[346808201,1735301456890,-500.0,0.00010886,2]
[346808202,1735301456899,-801.22,0.00010886,2]
[346808203,1735301456908,-6380.58,0.00010886,2]
[346808204,1735301456918,-3662.8,0.00010886,2]
[346808205,1735301456927,-500.0,0.00010886,2]
[346808206,1735301456936,-1660.88,0.00010886,2]
[346808207,1735301456945,-6172.4,0.00010886,2]
[346808208,1735301456954,-42968.78,0.00010886,2]
[346808209,1735301456963,-500.0,0.00010886,2]
[346808210,1735301456972,-1553.57,0.00010886,2]
[346808211,1735301456981,-4910.15,0.00010886,2]
[346808212,1735301456990,-500.0,0.00010886,2]
[346808213,1735301456999,-4256.29,0.00010886,2]
[346808214,1735301457008,-2948.31,0.00010886,2]
[346808215,1735301457017,-9638.81,0.00010886,2]
[346808216,1735301457027,-500.0,0.00010887,2]
[346808217,1735301457036,-500.0,0.00010887,2]
[346808218,1735301457045,-6730.05,0.00010887,2]
[346808219,1735301457055,-500.0,0.00010887,2]
[346808220,1735301457064,-801.22,0.00010887,2]
[346808221,1735301457073,-6389.14,0.00010887,2]
[346808222,1735301457082,-1041.9,0.00010887,2]
[346808223,1735301457092,-625.46,0.00010887,2]
[346808224,1735301457101,-2363.25,0.00010887,2]
[346808225,1735301457114,-2759.63,0.00010887,2]
[346808226,1735301457123,-62913.7,0.00010887,2]
[346808227,1735301457132,-1937.6,0.00010887,2]
[346808228,1735301457142,-400.0,0.000109,3]
[346808229,1735301457151,-165.61228422,0.000109,2]
[346808230,1735301457160,-150.0,0.00010919,2]
[346808231,1735301457169,-2500.0,0.00010919,2]
[346808232,1735301457179,-2500.0,0.00010919,2]
[346808233,1735301457189,-150.0,0.00010938,2]
[346808234,1735301457198,-150.0,0.00010941,2]
[346808235,1735301457207,-150.0,0.00010943,2]
[346808236,1735301457216,-150.0,0.00010946,2]
[346808237,1735301457225,-150.0,0.00010951,2]
[346808238,1735301457234,-150.0,0.00010958,2]
[346808239,1735301457244,-300.0,0.00010958,2]
[346808240,1735301457254,-150.0,0.00010959,2]
[346808241,1735301457263,-150.0,0.00010961,2]
[346808242,1735301457273,-150.0,0.00010964,2]
[346808243,1735301457283,-150.0,0.00010966,2]
[346808244,1735301457292,-150.0,0.00010966,2]
[346808245,1735301457301,-150.0,0.00010967,2]
[346808246,1735301457310,-150.0,0.00010976,2]
[346808247,1735301457319,-500.0,0.00010999,2]
[346808248,1735301457328,-500.0,0.00010999,2]
[346808249,1735301457338,-539.898985,0.00010999,2]
[346808250,1735301457347,-157.647,0.00010999,2]
[346808251,1735301457356,-2637.67,0.00010999,2]
[346808252,1735301457365,-150.0,0.00010999,2]
[346808253,1735301457374,-500.0,0.00010999,2]
[346808254,1735301457383,-500.0,0.00010999,2]
[346808255,1735301457392,-500.0,0.00010999,2]
[346808256,1735301457400,-500.0,0.00010999,2]
[346808257,1735301457409,-500.0,0.00010999,2]
[346808258,1735301457417,-559.2764455,0.00010999,2]
[346808259,1735301457426,-801.22,0.00010999,2]
[346808260,1735301457435,-801.22,0.00010999,2]
[346808261,1735301457444,-801.22,0.00010999,2]
[346808262,1735301457452,-801.22,0.00010999,2]
[346808263,1735301457461,-801.22,0.00010999,2]
[346808264,1735301457471,-801.22,0.00010999,2]
[346808265,1735301457479,-801.22,0.00010999,2]
[346808266,1735301457488,-801.22,0.00010999,2]
[346808267,1735301457497,-625.46,0.00010999,2]
[346808268,1735301457507,-625.46,0.00010999,2]
[346808269,1735301457516,-625.46,0.00010999,2]
[346808270,1735301457525,-625.46,0.00010999,2]
[346808271,1735301457534,-625.46,0.00010999,2]
[346808272,1735301457543,-625.46,0.00010999,2]
[346808273,1735301457552,-625.46,0.00010999,2]
[346808274,1735301457560,-625.46,0.00010999,2]
[346808275,1735301457569,-150.0,0.00011001,2]
[346808276,1735301457577,-150.0,0.00011002,2]
[346808277,1735301457586,-150.0,0.00011015,2]
[346808278,1735301457595,-522.0,0.00011017,2]
[346808279,1735301457603,-150.0,0.00011017,2]
[346808280,1735301457612,-150.0,0.00011017,2]
[346808281,1735301457621,-150.0,0.00011017,2]
[346808282,1735301457630,-150.0,0.00011018,2]
[346808283,1735301457639,-906.1,0.00011021,2]
[346808284,1735301457648,-18165.12,0.00011021,2]
[346808285,1735301457658,-3461.33,0.00011021,2]
[346808286,1735301457667,-4323.0,0.00011021,2]
[346808287,1735301457677,-2393.48,0.00011021,2]
[346808288,1735301457686,-5166.02,0.00011021,2]
[346808289,1735301457695,-500.0,0.00011021,2]
[346808290,1735301457705,-3197.44,0.00011021,2]
[346808291,1735301457714,-4743.81,0.00011021,2]
[346808292,1735301457723,-4861.2,0.00011021,2]
[346808293,1735301457732,-2862.61,0.00011021,2]
[346808294,1735301457741,-7990.49,0.00011021,2]
[346808295,1735301457750,-5019.24,0.00011021,2]
[346808296,1735301457759,-24780.75,0.00011021,2]
[346808297,1735301457768,-15826.43,0.00011021,2]
[346808298,1735301457777,-2087.35,0.00011021,2]